bitfinex/quotes_BTCUSD_20251114
["timestamp","ask_amount","ask_price","bid_price","bid_amount"]
[1763094844121,0.20335949,98348.0,98337.0,0.09794]
[1763094844346,0.01860587,98347.0,98337.0,0.09794]
[1763094844597,0.01860587,98346.0,98345.0,0.20336558]
[1763094844843,0.01861175,98346.0,98345.0,0.20336558]
[1763094845054,0.0001376,98350.0,98346.0,0.09794]
[1763094845263,0.01861058,98349.0,98347.0,0.20336156]
[1763094845431,0.01861058,98348.0,98347.0,0.20336156]
[1763094845664,0.0001376,98350.0,98347.0,0.20336156]
[1763094845896,0.01862137,98349.0,98347.0,0.20336156]
[1763094846099,0.0001376,98350.0,98349.0,0.20335743]
[1763094846412,0.0001376,98350.0,98348.0,0.14468]
[1763094846629,0.0001376,98350.0,98348.0,0.04674]
[1763094846848,0.0001376,98350.0,98349.0,0.09794]
[1763094847620,0.01877115,98350.0,98349.0,0.09794]
[1763094848020,0.01877115,98350.0,98344.0,0.04898]
[1763094848227,0.02794965,98349.0,98344.0,0.04898]
[1763094848469,0.0001376,98350.0,98333.0,0.09346]
[1763094848470,0.02794921,98348.0,98333.0,0.09346]
[1763094848684,0.20338324,98337.0,98325.0,0.1402]
[1763094849045,0.20336732,98345.0,98326.0,0.09346]
[1763094849273,0.20336983,98343.0,98326.0,0.09346]
[1763094849471,0.20339965,98329.0,98326.0,0.09346]
[1763094850177,0.5,98358.0,98310.0,0.09346]
[1763094850388,0.34978751,98339.0,98305.0,0.04674]
[1763094850563,0.20341772,98320.0,98305.0,0.04674]
[1763094850900,0.34978751,98337.0,98305.0,0.04674]
[1763094850901,0.01865907,98319.0,98306.0,0.20344571]
[1763094851122,0.01865907,98318.0,98306.0,0.20344571]
[1763094851350,0.0214903,98326.0,98315.0,0.09346]
[1763094851535,0.02148759,98339.0,98326.0,0.25238465]
[1763094851737,0.02798224,98338.0,98326.0,0.04898]
[1763094851969,0.02798224,98337.0,98334.0,0.203388]
[1763094852100,0.01865483,98336.0,98334.0,0.203388]
[1763094852307,0.00013757,98339.0,98337.0,0.20338224]
[1763094852734,0.00013757,98339.0,98338.0,0.09346]
[1763094855333,0.00013757,98339.0,98338.0,0.09546]
[1763094855987,0.00013757,98339.0,98338.0,0.09346]
[1763094856426,0.196922,98388.0,98373.0,0.20330661]
[1763094856629,0.196922,98388.0,98360.0,0.03016673]
[1763094856630,0.04950033,98387.0,98374.0,0.1941026]
[1763094856776,0.01867518,98386.0,98384.0,0.20328304]
[1763094856978,0.01867518,98385.0,98383.0,0.20328366]
[1763094857185,0.20331726,98369.0,98363.0,0.04898]
[1763094857379,0.02801887,98368.0,98363.0,0.04898]
[1763094857579,0.20332228,98366.0,98363.0,0.04898]
[1763094857788,0.20332642,98364.0,98363.0,0.04898]
[1763094858022,0.20334673,98355.0,98347.0,0.04898]
[1763094858226,0.20333992,98358.0,98347.0,0.04898]
[1763094858436,0.01869446,98357.0,98348.0,0.09346]
[1763094858650,0.01869446,98356.0,98348.0,0.09346]
[1763094858855,0.01869446,98355.0,98349.0,0.20335743]
[1763094859082,0.01869446,98354.0,98352.0,0.20335122]
[1763094859310,0.00013775,98354.0,98352.0,0.20335122]
[1763094859537,0.01870592,98353.0,98349.0,0.20335743]
[1763094859780,0.00013775,98354.0,98351.0,0.20335206]
[1763094859979,0.00013775,98354.0,98348.0,0.29681949]
[1763094860398,0.01871455,98353.0,98349.0,0.09346]
[1763094860602,0.00013775,98354.0,98349.0,0.29681691]
[1763094860809,0.01871458,98353.0,98351.0,0.20335261]
[1763094861014,0.00013775,98354.0,98353.0,0.20334916]
[1763094861218,0.01885237,98354.0,98353.0,0.20334916]
[1763094861868,0.00013775,98354.0,98349.0,0.001]
[1763094862029,0.00013775,98354.0,98351.0,0.20335156]
[1763094862391,0.00013775,98354.0,98347.0,0.25234063]
[1763094862630,0.00013775,98354.0,98353.0,0.001]
[1763094862873,0.01886592,98354.0,98353.0,0.001]
[1763094863070,0.02678751,98382.0,98369.0,0.20331548]
[1763094863273,0.02054,98396.0,98369.0,0.20331548]
[1763094863274,0.02158172,98381.0,98369.0,0.20331548]
[1763094863477,0.02158172,98385.0,98381.0,0.06314]
[1763094863681,0.00013772,98385.0,98377.0,0.20329896]
[1763094863886,0.00013772,98385.0,98384.0,0.06314]
[1763094864101,0.00013772,98385.0,98384.0,0.20328508]
[1763094864720,0.00013772,98385.0,98383.0,0.20328513]
[1763094864887,0.00013772,98385.0,98382.0,0.20328921]
[1763094865472,0.20331195,98371.0,98370.0,0.00999999]
[1763094865697,0.20335689,98350.0,98336.0,0.09346]
[1763094866088,0.03695321,98370.0,98336.0,0.09346]
[1763094866089,0.02068,98356.0,98336.0,0.09346]
[1763094866292,0.20335623,98350.0,98336.0,0.09346]
[1763094867161,0.20337604,98340.0,98339.0,0.04911775]
[1763094868095,0.20337448,98341.0,98339.0,0.04911775]
[1763094869728,2.0,98363.0,98348.0,0.06314]
[1763094869928,0.20335536,98350.0,98349.0,0.04898]
[1763094872747,0.20337604,98340.0,98339.0,0.04911775]
[1763094872979,0.45698772,98360.0,98339.0,0.04911775]
[1763094873180,0.20333882,98358.0,98348.0,0.04605]
[1763094873412,0.2033535,98351.0,98348.0,0.04605]
[1763094873577,0.20335743,98349.0,98348.0,0.04605]
[1763094874562,0.20337604,98340.0,98339.0,0.14841775]
[1763094874782,0.20337604,98340.0,98339.0,0.04911775]
[1763094876070,0.20337604,98340.0,98339.0,0.00013775]
[1763094877778,2.22505604,98340.0,98339.0,0.00013775]
[1763094877981,2.24660429,98340.0,98339.0,0.00013775]
[1763094878629,2.56960429,98340.0,98339.0,0.00013775]
[1763094878840,2.59765826,98340.0,98339.0,0.00013775]
[1763094879037,2.20340086,98328.0,98327.0,0.00419832]
[1763094879268,2.24286053,98328.0,98327.0,0.00433589]
[1763094880107,2.23350911,98328.0,98327.0,0.00433589]
[1763094881332,2.24285277,98328.0,98327.0,0.00433589]
[1763094881788,2.24385277,98328.0,98327.0,0.00433589]
[1763094881970,2.23450911,98328.0,98327.0,0.00433589]
[1763094882172,2.23350911,98328.0,98327.0,0.00433589]
[1763094882573,2.23450911,98328.0,98327.0,0.00433589]
[1763094883147,2.24384724,98328.0,98327.0,0.00433589]
[1763094883616,2.24384399,98328.0,98327.0,0.00433589]
[1763094883818,2.24284399,98328.0,98327.0,0.00433589]
[1763094884027,2.24384399,98328.0,98327.0,0.00433589]
[1763094884367,2.23450911,98328.0,98327.0,0.00433589]
[1763094884575,2.23445592,98328.0,98327.0,0.00433589]
[1763094885159,2.24378796,98328.0,98327.0,0.00433589]
[1763094885380,2.21296086,98328.0,98327.0,0.00433589]
[1763094885581,2.23444512,98328.0,98327.0,0.00433589]
[1763094885785,2.24377508,98328.0,98327.0,0.00433589]
[1763094885991,2.24377482,98328.0,98327.0,0.00433589]
[1763094886198,2.24377451,98328.0,98327.0,0.00433589]
[1763094886435,2.20342775,98315.0,98314.0,0.02164825]
[1763094886665,2.22409437,98315.0,98314.0,0.02164825]
[1763094886867,2.00011662,98315.0,98314.0,0.02164825]
[1763094887078,0.00011662,98315.0,98314.0,0.02164825]
[1763094887490,0.00111662,98315.0,98314.0,0.02164825]
[1763094888351,0.20454437,98315.0,98314.0,0.02164825]
[1763094888558,0.00111662,98315.0,98314.0,0.02164825]
[1763094889175,2.02178662,98315.0,98314.0,0.02164825]
[1763094889404,2.00111662,98315.0,98314.0,0.02164825]
[1763094889612,2.00011662,98315.0,98314.0,0.02164825]
[1763094889817,2.02078662,98315.0,98314.0,0.02164825]
[1763094890836,2.02178662,98315.0,98314.0,0.02164825]
[1763094891280,2.02078662,98315.0,98314.0,0.02164825]
[1763094891781,0.20342982,98314.0,98302.0,0.0024]
[1763094891973,2.23269259,98303.0,98302.0,0.0024]
[1763094892432,2.22412259,98303.0,98250.0,0.0004]
[1763094892646,0.00999999,98170.0,98079.0,0.22639696]
[1763094892842,0.52677859,98148.0,98143.0,0.23140951]
[1763094893020,2.323,98144.0,98143.0,0.20084803]
[1763094893264,2.38785702,98144.0,98143.0,0.20084803]
[1763094893476,2.0,98127.0,98070.0,0.0020408]
[1763094893674,2.0,98074.0,98070.0,0.0020408]
[1763094893810,2.34409437,98074.0,98070.0,0.0020408]
[1763094894016,0.03061721,98074.0,98070.0,0.0020408]
[1763094894228,2.34436977,98074.0,98070.0,0.0020408]
[1763094894431,2.0,98073.0,98070.0,0.0020408]
[1763094894646,0.323,98072.0,98071.0,0.30603896]
[1763094894942,2.34411291,98072.0,98071.0,0.30603896]
[1763094895357,2.34411291,98072.0,98050.0,0.0020409]
[1763094895358,2.0,98070.0,98050.0,0.0020409]
[1763094895621,0.20195104,98032.0,98026.0,0.30289958]
[1763094895820,0.20402542,98027.0,98026.0,0.30289958]
[1763094895963,2.50673745,98027.0,98026.0,0.07561447]
[1763094896166,2.50673745,98027.0,98026.0,0.04497414]
[1763094896167,2.0,98027.0,98026.0,0.04497414]
[1763094896420,0.00999999,98040.0,98002.0,0.001]
[1763094896421,1.9947296,98015.0,98012.0,0.00111329]
[1763094896622,1.9947296,98013.0,98012.0,0.00111329]
[1763094896897,1.9947296,98011.0,98006.0,0.04278407]
[1763094897112,0.36641874,98002.0,98000.0,28.90978502]
[1763094897314,0.60138645,98001.0,98000.0,27.30231199]
[1763094897525,0.63694709,98001.0,98000.0,25.32062775]
[1763094897730,0.71642217,98001.0,98000.0,23.17683969]
[1763094897946,0.84631182,98001.0,98000.0,20.7993087]
[1763094898170,0.84631182,98001.0,98000.0,19.99081087]
[1763094898171,0.87347322,98001.0,98000.0,19.99081087]
[1763094898389,0.82555766,98001.0,98000.0,17.7314025]
[1763094898608,0.82555766,98001.0,98000.0,16.48149719]
[1763094898799,0.82555766,98001.0,98000.0,14.30072718]
[1763094899026,0.82555766,98001.0,98000.0,13.74519301]
[1763094899193,0.82555766,98001.0,98000.0,9.19608352]
[1763094899194,0.85121388,98001.0,98000.0,9.19608352]
[1763094899448,0.64316008,98001.0,98000.0,5.47804534]
[1763094899621,0.64316008,98001.0,98000.0,1.26403458]
[1763094899622,0.804695,98001.0,98000.0,1.26403458]
[1763094899831,0.323,97899.0,97898.0,1.30014503]
[1763094900008,2.53729217,97899.0,97898.0,0.2796857]
[1763094900215,2.58071091,97899.0,97898.0,0.2796857]
[1763094900413,2.20429217,97899.0,97898.0,0.24900192]
[1763094900998,0.00013666,97899.0,97898.0,0.24900192]
[1763094901240,0.20442883,97899.0,97898.0,0.24900192]
[1763094901444,0.20429217,97899.0,97898.0,0.24900192]
[1763094901702,1.98693188,97900.0,97898.0,0.24900192]
[1763094901896,1.98693188,97900.0,97898.0,0.24945577]
[1763094902106,1.97789117,97900.0,97898.0,0.24945577]
[1763094902309,1.97789117,97900.0,97899.0,0.323]
[1763094902310,1.85688809,97900.0,97899.0,0.323]
[1763094902516,0.15688809,97900.0,97899.0,0.323]
[1763094902720,0.15688809,97900.0,97899.0,0.36641874]
[1763094902948,0.00999999,97970.0,97913.0,0.5706817]
[1763094903151,0.00999999,97980.0,97950.0,0.5110164]
[1763094903352,0.00999999,97980.0,97950.0,0.50080711]
[1763094903557,0.04915,97989.0,97950.0,0.50080711]
[1763094903768,0.00999999,97990.0,97962.0,0.04341874]
[1763094903950,0.00999999,98000.0,97964.0,0.36641874]
[1763094904164,0.09881,97997.0,97974.0,0.00862813]
[1763094904302,0.09881,97997.0,97950.0,0.01]
[1763094904303,0.05257692,97975.0,97950.0,0.02999999]
[1763094904511,0.05257692,97975.0,97961.0,0.323]
[1763094904711,0.05257692,97975.0,97974.0,0.323]
[1763094904919,0.05257692,97975.0,97974.0,0.4236426]
[1763094905120,0.00013785,97975.0,97974.0,0.4236426]
[1763094905322,0.00999999,98030.0,97990.0,0.02020511]
[1763094905524,0.01013777,98030.0,98000.0,0.53101118]
[1763094905741,0.00013778,98030.0,98000.0,0.01999999]
[1763094905944,0.01013777,98030.0,98000.0,0.01999999]
[1763094906147,19.96979593,98000.0,97990.0,0.03020512]
[1763094906303,19.96979593,98000.0,97999.0,0.14406134]
[1763094906704,19.96979593,98000.0,97999.0,0.46706134]
[1763094906923,19.93914953,98000.0,97999.0,0.46706134]
[1763094907163,19.81379037,98000.0,97999.0,0.14406134]
[1763094907361,19.78314397,98000.0,97999.0,0.04387259]
[1763094907561,19.75249757,98000.0,97999.0,0.36687259]
[1763094907764,19.41349093,98000.0,97999.0,0.36687259]
[1763094907966,18.46443825,98000.0,97999.0,0.41793624]
[1763094908164,16.37897239,98000.0,97999.0,2.48842031]
[1763094908382,15.78450923,98000.0,97999.0,2.48842031]
[1763094908623,15.75388099,98000.0,97999.0,0.43735666]
[1763094908844,15.72325275,98000.0,97999.0,0.00045385]
[1763094909067,15.69262451,98000.0,97999.0,0.02563283]
[1763094909293,15.63799627,98000.0,97999.0,0.09326066]
[1763094909505,35.60736803,98000.0,97999.0,0.09326066]
[1763094909713,34.51113823,98000.0,97999.0,2.41804843]
[1763094909914,34.23615251,98000.0,97999.0,2.79205157]
[1763094910115,34.20552427,98000.0,97999.0,2.7911166]
[1763094910347,33.78108496,98000.0,97999.0,2.81379633]
[1763094910564,33.13461165,98000.0,97999.0,2.81379633]
[1763094910819,30.94696326,98000.0,97999.0,2.8410646]
[1763094911015,29.60231879,98000.0,97999.0,2.79516067]
[1763094911219,29.24279889,98000.0,97999.0,2.99017115]
[1763094911412,29.19389946,98000.0,97999.0,3.01519011]
[1763094911613,28.52138053,98000.0,97999.0,3.01519011]
[1763094911818,28.43028309,98000.0,97999.0,3.01519011]
[1763094912021,28.07946804,98000.0,97999.0,3.0319387]
[1763094912232,27.66192375,98000.0,97999.0,3.0319387]
[1763094912435,27.08695735,98000.0,97999.0,3.0096591]
[1763094912648,26.4058714,98000.0,97999.0,3.03471507]
[1763094912847,26.27595892,98000.0,97999.0,3.03471507]
[1763094913002,26.24534274,98000.0,97999.0,3.03280769]
[1763094913205,25.59415881,98000.0,97999.0,3.03280769]
[1763094913409,25.32339293,98000.0,97999.0,3.03280769]
[1763094913627,24.17026196,98000.0,97999.0,3.03280769]
[1763094913824,23.95282702,98000.0,97999.0,3.0160591]
[1763094914166,23.15385468,98000.0,97999.0,3.03234838]
[1763094914323,23.15385468,98000.0,97999.0,3.00919979]
[1763094914324,20.40607228,98000.0,97999.0,3.00919979]
[1763094914528,18.29690515,98000.0,97999.0,3.03384424]
[1763094914757,17.69849045,98000.0,97999.0,3.01842352]
[1763094914966,17.4399644,98000.0,97999.0,3.01842352]
[1763094915161,16.91900934,98000.0,97999.0,3.01842352]
[1763094915371,16.50430585,98000.0,97999.0,3.03253702]
[1763094915581,16.30191582,98000.0,97999.0,3.03253702]
[1763094915837,16.27131009,98000.0,97999.0,3.03253702]
[1763094916142,15.48298186,98000.0,97999.0,3.00971425]
[1763094916345,14.79764054,98000.0,97999.0,3.01066698]
[1763094916553,4.55376166,98000.0,97999.0,3.00954775]
[1763094916761,4.38539128,98000.0,97999.0,3.03352364]
[1763094916971,4.13290761,98000.0,97999.0,3.01021727]
[1763094917237,3.50269861,98000.0,97999.0,3.0351903]
[1763094917438,3.34149326,98000.0,97999.0,3.0210768]
[1763094917641,2.89188772,98000.0,97999.0,3.0210768]
[1763094917840,2.65905187,98000.0,97999.0,3.01187516]
[1763094918069,2.62844614,98000.0,97999.0,3.01825532]
[1763094918351,1.55100566,98000.0,97999.0,2.99474076]
[1763094918567,0.00999999,98130.0,98080.0,0.01019575]
[1763094918777,0.00999999,98130.0,98101.0,0.537185]
[1763094918978,0.00999999,98140.0,98101.0,0.537185]
[1763094919392,0.21379221,98140.0,98101.0,0.537185]
[1763094919597,0.00999999,98140.0,98101.0,0.537185]
[1763094919797,0.00999999,98140.0,98090.0,0.08067878]
[1763094919798,0.00435513,98118.0,98111.0,0.537185]
[1763094920018,0.00435513,98118.0,98100.0,0.02]
[1763094920219,0.00435513,98118.0,98101.0,0.537185]
[1763094920424,0.00435513,98118.0,98110.0,0.02]
[1763094921046,0.00435513,98118.0,98100.0,0.50080711]
[1763094921263,0.00435513,98118.0,98101.0,0.537185]
[1763094921512,0.00386513,98118.0,98117.0,0.20383827]
[1763094921731,0.0942,98190.0,98160.0,0.01]
[1763094921732,0.00999999,98190.0,98160.0,0.01]
[1763094921956,0.00013778,98190.0,98160.0,0.50080711]
[1763094922249,0.00013778,98190.0,98180.0,0.02]
[1763094922465,0.00013778,98190.0,98181.0,0.537185]
[1763094922694,0.00013778,98190.0,98183.0,0.537185]
[1763094922918,0.00013778,98190.0,98185.0,0.537185]
[1763094923148,0.00013778,98190.0,98187.0,0.20369232]
[1763094923374,0.00013778,98190.0,98186.0,0.07048407]
[1763094923621,0.00013778,98190.0,98171.0,0.537185]
[1763094923622,0.02013776,98190.0,98171.0,0.537185]
[1763094923845,0.00013778,98190.0,98180.0,0.01]
[1763094924069,0.00013778,98190.0,98181.0,0.537185]
[1763094924287,0.00013778,98190.0,98180.0,0.01]
[1763094924288,0.00013778,98190.0,98183.0,0.537185]
[1763094925183,0.00013778,98190.0,98181.0,0.537185]
[1763094925618,0.00013778,98190.0,98182.0,0.00014]
[1763094925821,0.00013778,98190.0,98189.0,0.2036888]
[1763094926048,0.00013778,98190.0,98189.0,0.7408738]
[1763094926906,0.00013778,98190.0,98189.0,0.78429254]
[1763094927147,0.00013778,98190.0,98189.0,1.10729254]
[1763094927364,9e-05,98196.0,98195.0,3.10728009]
[1763094927595,9e-05,98196.0,98195.0,3.17821801]
[1763094927809,0.0942,98229.0,98221.0,0.537185]
[1763094928035,0.45861664,98220.0,98196.0,0.537185]
[1763094928251,0.00999999,98220.0,98196.0,0.537185]
[1763094928477,0.01999998,98240.0,98201.0,0.537185]
[1763094928694,0.01999998,98240.0,98211.0,0.537185]
[1763094928919,0.01999998,98240.0,98197.0,0.537185]
[1763094929127,0.01999998,98240.0,98210.0,0.02]
[1763094929345,0.01999998,98240.0,98211.0,0.537185]
[1763094929563,0.00999999,98230.0,98211.0,0.537185]
[1763094929800,0.20359131,98237.0,98211.0,0.537185]
[1763094930068,0.01999998,98240.0,98211.0,0.537185]
[1763094930269,0.01999998,98230.0,98211.0,0.537185]
[1763094930471,0.44861665,98240.0,98202.0,0.20366183]
[1763094930472,0.45861664,98240.0,98202.0,0.20366183]
[1763094930682,0.01999998,98230.0,98200.0,0.547185]
[1763094930886,0.01999998,98230.0,98201.0,0.537185]
[1763094931096,0.01999998,98230.0,98195.0,0.00045385]
[1763094931097,0.22360538,98230.0,98210.0,0.02]
[1763094931311,0.00999999,98220.0,98201.0,0.537185]
[1763094931524,0.09725,98239.0,98201.0,0.537185]
[1763094931727,0.09725,98239.0,98211.0,0.537185]
[1763094931937,0.01999998,98230.0,98211.0,0.537185]
[1763094932151,0.00999999,98220.0,98201.0,0.537185]
[1763094932371,0.56925923,98230.0,98201.0,0.537185]
[1763094932596,0.20360793,98228.0,98201.0,0.537185]
[1763094932786,0.12064258,98230.0,98201.0,0.537185]
[1763094933002,0.46861663,98240.0,98201.0,0.537185]
[1763094933204,0.12064258,98230.0,98201.0,0.537185]
[1763094933408,0.2036064,98229.0,98211.0,0.537185]
[1763094933607,0.20361162,98227.0,98211.0,0.537185]
[1763094933821,0.00999999,98230.0,98211.0,0.537185]
[1763094934253,0.00999999,98230.0,98221.0,0.537185]
[1763094934454,0.00999999,98230.0,98195.0,0.00045385]
[1763094934455,0.20361005,98227.0,98195.0,0.00045385]
[1763094934660,0.1006426,98229.0,98211.0,0.537185]
[1763094934865,0.01999998,98240.0,98211.0,0.537185]
[1763094935065,0.01999998,98240.0,98196.0,0.20381248]
[1763094935066,0.00999999,98240.0,98221.0,0.537185]
[1763094935273,0.00999999,98240.0,98231.0,0.537185]
[1763094935681,0.00999999,98240.0,98221.0,0.537185]
[1763094935883,0.20359713,98234.0,98210.0,0.01]
[1763094936089,0.20360082,98232.0,98211.0,0.537185]
[1763094936295,0.20358513,98239.0,98211.0,0.537185]
[1763094936511,0.0001377,98232.0,98211.0,0.537185]
[1763094936923,0.00999999,98230.0,98211.0,0.537185]
[1763094937121,0.00999999,98230.0,98221.0,0.537185]
[1763094937354,0.00999999,98230.0,98211.0,0.537185]
[1763094937560,0.20361118,98227.0,98211.0,0.537185]
[1763094937738,0.00999999,98230.0,98211.0,0.537185]
[1763094937971,0.00999999,98230.0,98220.0,0.02]
[1763094938174,0.00999999,98230.0,98221.0,0.537185]
[1763094938375,0.302817,98229.0,98200.0,0.01]
[1763094938588,0.00999999,98230.0,98201.0,0.537185]
[1763094938821,0.0001377,98232.0,98211.0,0.537185]
[1763094939053,0.0001377,98232.0,98221.0,0.38710942]
[1763094939466,0.00068252,98222.0,98221.0,0.38710942]
[1763094939643,0.00068252,98222.0,98211.0,0.38710942]
[1763094939872,0.1006426,98230.0,98211.0,0.38710942]
[1763094940081,0.20360171,98231.0,98211.0,0.38710942]
[1763094940289,0.0001377,98232.0,98211.0,0.38710942]
[1763094940907,0.0001377,98232.0,98220.0,0.02]
[1763094941115,0.0001377,98232.0,98221.0,0.38710942]
[1763094941730,0.0001377,98232.0,98223.0,0.38710942]
[1763094941846,0.0001377,98232.0,98230.0,0.01]
[1763094942044,0.0001377,98232.0,98225.0,0.38710942]
[1763094942257,0.0001377,98232.0,98230.0,0.20360322]
[1763094942484,0.0001377,98232.0,98231.0,0.38710942]
[1763094942902,0.0001377,98232.0,98200.0,0.01018329]
[1763094942903,0.0001377,98232.0,98221.0,0.38710942]
[1763094943074,0.0001377,98232.0,98231.0,0.38710942]
[1763094943733,0.0001377,98232.0,98230.0,0.38710942]
[1763094943928,0.0001377,98232.0,98221.0,0.38710942]
[1763094944136,0.0001377,98232.0,98211.0,0.38710942]
[1763094944350,0.11082382,98220.0,98190.0,0.01]
[1763094944480,0.45861664,98230.0,98173.0,0.00014]
[1763094944481,0.01999998,98210.0,98175.0,0.38710942]
[1763094944864,0.00999999,98210.0,98191.0,0.38710942]
[1763094945067,0.1006426,98208.0,98191.0,0.38710942]
[1763094945810,0.00999999,98210.0,98191.0,0.38710942]
[1763094946015,0.00999999,98210.0,98156.0,0.07048407]
[1763094946016,0.1006426,98192.0,98156.0,0.07048407]
[1763094946311,0.00999999,98170.0,98140.0,0.01]
[1763094946635,0.00999999,98170.0,98136.0,0.20379811]
[1763094946981,0.00999999,98170.0,98150.0,0.01]
[1763094947123,0.02135591,98173.0,98150.0,0.01045385]
[1763094947321,0.10991067,98172.0,98150.0,0.01045385]
[1763094947544,0.00999999,98170.0,98150.0,0.01045385]
[1763094947751,0.00926807,98169.0,98150.0,0.01045385]
[1763094947954,0.1006426,98153.0,98150.0,0.00045385]
[1763094948156,0.00999999,98150.0,98110.0,0.01019264]
[1763094948329,0.03064707,98150.0,98104.0,0.00014]
[1763094948529,0.1006426,98138.0,98110.0,0.02]
[1763094948754,0.1006426,98138.0,98120.0,0.02]
[1763094948963,0.09725,98137.0,98081.0,0.00014]
[1763094949162,0.00999999,98120.0,98090.0,0.02]
[1763094949371,0.00999999,98120.0,98090.0,0.01019471]
[1763094949546,0.01999998,98110.0,98062.0,0.20395098]
[1763094949747,0.01999998,98100.0,98051.0,0.5]
[1763094949946,0.01999998,98100.0,98070.0,0.02]
[1763094950171,0.04734,98099.0,98070.0,0.02]
[1763094950400,0.1006426,98087.0,98070.0,0.02]
[1763094950600,0.1006426,98087.0,98060.0,0.02]
[1763094950952,0.00999999,98080.0,98052.0,0.00421539]
[1763094952508,0.1006426,98086.0,98052.0,0.00421539]
[1763094952773,0.1006426,98086.0,98060.0,0.02]
[1763094952976,0.04779833,98099.0,98060.0,0.03019783]
[1763094953181,0.00999999,98090.0,98070.0,0.02]
[1763094953382,0.04779833,98099.0,98070.0,0.03019679]
[1763094953788,0.04779833,98099.0,98070.0,0.02]
[1763094953992,0.00999999,98090.0,98070.0,0.02]
[1763094954352,0.04779833,98099.0,98070.0,0.02]
[1763094955716,0.00999999,98090.0,98070.0,0.02]
[1763094955921,0.00045833,98099.0,98080.0,0.02]
[1763094958853,0.00045833,98099.0,98081.0,0.00014]
[1763094959058,0.00045833,98099.0,98090.0,0.02]
[1763094960476,0.00661733,98099.0,98085.0,0.20390318]
[1763094960740,0.00661733,98099.0,98083.0,0.20390772]
[1763094961055,0.00661733,98099.0,98089.0,0.20389646]
[1763094961275,0.00661733,98099.0,98098.0,2.0]
[1763094961478,0.00661733,98099.0,98096.0,0.20388145]
[1763094961672,0.00661733,98099.0,98098.0,0.20387775]
[1763094962112,0.00661733,98099.0,98098.0,0.20371775]
[1763094962263,0.00661733,98099.0,98096.0,0.20388191]
[1763094962637,0.00661733,98099.0,98098.0,0.20387775]
[1763094963291,0.00661733,98099.0,98098.0,0.07048407]
[1763094964773,0.00661733,98099.0,98098.0,2.07048407]
[1763094967702,20.00661733,98099.0,98098.0,2.07048407]
[1763094969633,20.00661733,98099.0,98086.0,0.07048407]
[1763094969896,20.00661733,98099.0,98098.0,0.00014]
[1763094970247,20.00661733,98099.0,98097.0,0.20387905]
[1763094971013,20.00661733,98099.0,98098.0,0.00014]
[1763094971229,20.00661733,98099.0,98098.0,2.00014]
[1763094971649,20.00661733,98099.0,98097.0,2.0]
[1763094971863,20.00661733,98099.0,98087.0,2.0]
[1763094972072,20.00661733,98099.0,98090.0,0.01]
[1763094972282,20.00661733,98099.0,98060.0,0.01019783]
[1763094972283,0.30452243,98098.0,98066.0,0.00014]
[1763094972489,0.04964,98085.0,98055.0,0.00014]
[1763094972700,0.01999998,98090.0,98060.0,0.02019783]
[1763094972936,0.09302,98089.0,98060.0,0.01]
[1763094973161,0.01999998,98080.0,98052.0,0.00421539]
[1763094973370,0.00999999,98080.0,98052.0,0.00421539]
[1763094973580,0.00999999,98080.0,98070.0,0.02]
[1763094973793,0.01999998,98090.0,98070.0,0.02]
[1763094973994,0.01999998,98090.0,98070.0,0.22393492]
[1763094974286,0.01999998,98090.0,98070.0,0.02]
[1763094974572,0.00999999,98090.0,98070.0,0.02]
[1763094974808,0.01999998,98090.0,98060.0,0.01]
[1763094975004,0.01999998,98080.0,98050.0,0.02014]
[1763094975581,0.01999998,98080.0,98057.0,0.20396129]
[1763094975791,0.00999999,98080.0,98070.0,0.02]
[1763094975996,0.01999998,98090.0,98070.0,0.02]
[1763094976198,0.02142537,98089.0,98070.0,0.02]
[1763094976392,0.01999998,98080.0,98060.0,0.02]
[1763094977183,0.01999998,98080.0,98052.0,0.00421539]
[1763094977184,0.1006426,98079.0,98052.0,0.00421539]
[1763094977459,0.02145954,98078.0,98052.0,0.00421539]
[1763094977762,0.01999998,98060.0,98052.0,0.00421539]
[1763094978003,0.00999999,98050.0,98030.0,0.02]
[1763094978144,0.20398979,98045.0,98010.0,0.0004]
[1763094978322,0.04964,98031.0,98010.0,0.0004]
[1763094978537,0.04964,98031.0,98010.0,0.0204]
[1763094978939,0.00999999,98020.0,98010.0,0.0004]
[1763094979572,0.1006426,98029.0,98010.0,0.0004]
[1763094979778,0.00999999,98030.0,98010.0,0.0004]
[1763094979953,0.00045777,98031.0,98029.0,0.20402042]
[1763094980167,0.00031777,98031.0,98029.0,0.20402042]
[1763094980555,0.00031777,98031.0,98030.0,2.02]
[1763094980987,0.00031777,98031.0,98030.0,2.1206426]
[1763094981230,0.00031777,98031.0,98030.0,2.1006426]
[1763094981432,0.01999998,98080.0,98070.0,0.02]
[1763094981634,0.01999998,98080.0,98070.0,0.02013778]
[1763094981886,0.02139826,98094.0,98070.0,0.02013778]
[1763094981887,0.01999998,98090.0,98070.0,0.02013778]
[1763094982080,0.00999999,98100.0,98080.0,0.02]
[1763094982299,0.00999999,98100.0,98070.0,0.00013778]
[1763094982300,0.01999998,98100.0,98090.0,0.02]
[1763094982437,0.01999998,98100.0,98081.0,0.20391309]
[1763094982438,0.00999999,98100.0,98087.0,0.20389965]
[1763094982642,0.00999999,98100.0,98090.0,0.02]
[1763094982864,0.01999998,98100.0,98091.0,0.2038923]
[1763094983158,0.01999998,98110.0,98090.0,0.02]
[1763094983494,0.01999998,98110.0,98092.0,0.20388864]
[1763094984128,0.01999998,98110.0,98072.0,0.07048407]
[1763094984129,0.00999999,98100.0,98060.0,0.0806819]
[1763094984303,0.00999999,98090.0,98070.0,0.02013778]
[1763094984716,0.01999998,98080.0,98070.0,0.00013778]
[1763094984964,0.00999999,98080.0,98070.0,0.00013778]
[1763094985142,0.01999998,98080.0,98070.0,0.00013778]
[1763094985337,0.1006426,98078.0,98070.0,0.00013778]
[1763094986340,0.04964,98071.0,98070.0,0.00013778]
[1763094987370,0.07102837,98071.0,98070.0,0.00013778]
[1763094987551,0.04964,98071.0,98070.0,0.00013778]
[1763094988834,0.07102767,98071.0,98070.0,0.00013778]
[1763094989010,2.41258874,98071.0,98070.0,0.00013778]
[1763094989799,0.39402767,98071.0,98070.0,0.00013778]
[1763094989997,0.07102767,98071.0,98070.0,0.00013778]
[1763094990223,0.04964,98071.0,98070.0,0.00013778]
[1763094991405,0.06936,98078.0,98070.0,0.00013778]
[1763094991559,0.1006426,98077.0,98070.0,0.00013778]
[1763094992840,0.46011028,98090.0,98070.0,0.02013778]
[1763094993036,0.01999998,98090.0,98070.0,0.00013778]
[1763094993224,0.04575,98089.0,98070.0,0.02013778]
[1763094993424,0.00999999,98080.0,98070.0,0.00013778]